Cogmind - Beta 13 @@@ ROGUE MODE // 2024.04.18 @ 16:47:56 Player: Fazzonamite Result: Destroyed by G-47 Trooper with Particle Gun Performance ------------- Evolutions (2) 1000 Regions Visited (3) 600 Robots Destroyed (35) 175 Value Destroyed (928) 928 Prototype IDs (0) 0 Alien Tech Used (0) 0 Bonus (0) 0 TOTAL SCORE: 2703 Bonus ------- None Cogmind --------- Core Integrity 0/550 Matter 68/300 Energy 100/100 System Corruption 0% Temperature Cool (9) Movement Core (50) Location -8/Materials Parts ------- > --- POWER (1) -------- (None) > --- PROPULSION (3) --- (None) > --- UTILITY (5) ------ Visual Processing Unit Signal Interpreter > --- WEAPON (2) ------- (None) > --- INVENTORY (5) ---- Large Matter Pod (150) ECM Suite Improved Light Armor Plating Shock Rifle Mini Grenade Launcher Peak State ------------ > --- POWER ------------ Light Nuclear Core > --- PROPULSION ------- Improved Hover Unit > --- UTILITY ---------- Visual Processing Unit Signal Interpreter Seismic Detector Particle Charger Weapon Shielding > --- WEAPON ----------- Mini Grenade Launcher Mini Grenade Launcher > --- INVENTORY -------- Large Matter Pod ECM Suite Improved Light Armor Plating Shock Rifle Minigun [Rating: 18] Favorites ----------- Power Light Ion Engine Engine Light Ion Engine Power Core Light Nuclear Core Propulsion Compact Wheel Wheel Compact Wheel Hover Unit Improved Hover Unit Utility Small Storage Unit Device Seismic Detector Storage Small Storage Unit Processor Signal Interpreter Protection Weapon Shielding Weapon Assault Rifle Energy Gun Medium Laser Ballistic Gun Assault Rifle Launcher Mini Grenade Launcher Build | -11 -10 -9 -8 ------- Run | Yrd Mat Mat Mat Slots Evolved 4 | . . 2 2 Power . | . . . . Propulsion 1 | . . . 1 Utility 3 | . . 2 1 Weapon . | . . . . Parts Attached 39 | 6 16 13 4 Power 6 | 1 2 3 . Engine 5 | 1 2 2 . Core 1 | . . 1 . Reactor . | . . . . Propulsion 8 | 2 4 1 1 Treads . | . . . . Leg . | . . . . Wheel 5 | 2 2 . 1 Hover 3 | . 2 1 . Flight . | . . . . Utility 14 | 1 7 4 2 Device 6 | . 3 2 1 Storage 1 | 1 . . . Processor 2 | . 1 1 . Hackware . | . . . . Protection 5 | . 3 1 1 Artifact . | . . . . Weapon 11 | 2 3 5 1 Energy Gun 2 | . 2 . . Energy Cannon . | . . . . Ballistic Gun 6 | 2 1 2 1 Ballistic Cannon . | . . . . Launcher 3 | . . 3 . Special Weapon . | . . . . Impact Weapon . | . . . . Slashing Weapon . | . . . . Piercing Weapon . | . . . . Special Melee Weapon . | . . . . Unidentified Prototypes . | . . . . Parts Lost 15 | . 4 4 7 Power 3 | . . 2 1 Propulsion 6 | . 2 2 2 Utility 3 | . 1 . 2 Weapon 3 | . 1 . 2 Highest Loss Streak 5 | . 3 2 5 To Critical Strikes . | . . . . Average Slot Usage (%) 89 | . 97 90 59 Engine 10 | . 14 8 . Core 1 | . . 1 6 Wheel 13 | . 24 . 1 Hover 7 | . 1 19 5 Device 5 | . 5 5 7 Storage 10 | . 14 9 . Processor 8 | . 2 12 18 Protection 7 | . 5 11 5 Energy Gun 8 | . 10 9 . Ballistic Gun 12 | . 16 9 2 Launcher 2 | . . 3 12 Naked Turns . | . . . . Heaviest Build 16 | 13 16 16 11 Greatest Support 32 | 20 32 14 12 Greatest Overweight (x) 4 | 3 4 1 3 Average Overweight (x) . | . . . . Largest Inventory Capacity 8 | 8 8 8 5 Average Capacity 7 | 7 8 7 5 Most Carried 8 | 3 8 8 5 Average Carried 6 | 1 7 6 4 Final Capacity 8 | 8 8 5 5 Final Carried 8 | 2 8 2 5 Class Distribution -------------------- 92% | Mutant 7% | Scavenger-Mutant Dominant Class ---------------- Mutant | -10/Materials Mutant | -9/Materials Mutant | -8/Materials Resources | -11 -10 -9 -8 ----------- Run | Yrd Mat Mat Mat Matter Collected 973 | 230 482 187 74 Remotely 110 | . 110 . . Salvage Created 953 | . 537 331 85 Parts 73 | . 32 38 3 Haulers Intercepted . | . . . . Recyclers Shooed 2 | . 1 1 . Parts Field Recycled . | . . . . Retrieved Matter . | . . . . Parts Self-Destructed . | . . . . Prevented . | . . . . Kills | -11 -10 -9 -8 ------- Run | Yrd Mat Mat Mat Combat Hostiles Destroyed 24 | . 9 12 3 Guns 17 | . 9 8 . AOE 7 | . . 4 3 Classes Destroyed 9 | . 4 4 1 Worker 1 | . 1 . . Tunneler 1 | . . 1 . Recycler 1 | . 1 . . Operator 1 | . . 1 . Watcher 7 | . 3 4 . Swarmer 7 | . . 7 . Grunt 13 | . 9 3 1 Duelist 1 | . . . 1 Sentry 3 | . . 2 1 Best Kill Streak 5 | . 4 5 2 Combat Bots Only 5 | . 3 5 2 Max Kills in Single Turn 3 | . 1 3 2 Gunslinging . | . . . . Exploded 3 | . . 3 2 Melee . | . . . . Uniques/NPCs Destroyed . | . . . . Combat | -11 -10 -9 -8 -------- Run | Yrd Mat Mat Mat Hostile Shots Fired 199 | . 53 61 85 Missed 57 | . 9 22 26 Damage Taken 1971 | . 561 443 967 Core 749 | . 97 87 565 Absorbed by Shields . | . . . . Redirected to Shielding 82 | . 28 29 25 Core Remaining (%) 79 | 100 61 78 . Volleys Fired 118 | . 47 61 10 Largest 2 | . 2 2 2 Hottest 80 | . 70 80 60 Shots Fired 226 | . 88 122 16 Gun 197 | . 88 109 . Cannon . | . . . . Launcher 29 | . . 13 16 Special . | . . . . Kinetic 134 | . 80 54 . Thermal 63 | . 8 55 . Explosive 29 | . . 13 16 Electromagnetic . | . . . . Robot Hit Streak 9 | . 9 8 5 Robot Miss Streak 5 | . 4 5 2 Penetration Max . | . . . . Secondary Targets 2 | . 1 1 . Max Gunslinging Chain 1 | . 1 1 . Shots Hit Robots 121 | . 53 62 6 Core Hits 67 | . 29 26 12 Critical Kills . | . . . . Critical Parts Destroyed . | . . . . Critical Strikes 5 | . 1 4 . Burn 5 | . 1 4 . Melee Attacks . | . . . . Impact . | . . . . Slashing . | . . . . Piercing . | . . . . Sneak Attacks . | . . . . Combat Hostiles . | . . . . Follow-up Attacks . | . . . . Damage Inflicted 2230 | . 613 1031 586 Guns 1258 | . 613 645 . Cannons . | . . . . Explosions 972 | . . 386 586 Melee . | . . . . Ramming . | . . . . Kinetic 870 | . 565 305 . Thermal 388 | . 48 340 . Explosive 972 | . . 386 586 Electromagnetic . | . . . . Impact . | . . . . Slashing . | . . . . Piercing . | . . . . Highest Corruption . | . . . . Average Corruption . | . . . . Corruption Purged . | . . . . Corruption Blocked . | . . . . Overload Shots . | . . . . Overflow Damage . | . . . . Projectiles . | . . . . Explosions . | . . . . Melee . | . . . . Knockbacks . | . . . . Impact . | . . . . Kinetic . | . . . . Secondary . | . . . . Self-Inflicted Damage 47 | . . 47 . Shots 1 | . . 1 . Rammed . | . . . . Targets Rammed . | . . . . Kicked . | . . . . Crushed . | . . . . Highest Temperature 128 | . 70 128 15 Average Temperature 29 | . 16 37 6 Received Heat Transfer 888 | . 336 93 459 Siege Activations . | . . . . Robots Corrupted . | . . . . Combat Hostiles . | . . . . Parts Fried . | . . . . Impact Corruptions . | . . . . Robots Melted . | . . . . Combat Hostiles . | . . . . Parts Melted 1 | . . 1 . Heat Transferred 1517 | . 222 1295 . Parts Sabotaged . | . . . . Parts Stolen . | . . . . Parts Stripped . | . . . . Power Chain Reactions . | . . . . Alert | -11 -10 -9 -8 ------- Run | Yrd Mat Mat Mat Peak Influence 361 | . 222 361 339 Initial 152 | . . 15 152 Average 102 | . 68 114 223 Maximum Alert Level 1 | . 1 1 1 Low Security (%) 80 | 100 87 79 49 Level 1 19 | . 12 20 50 Level 2 . | . . . . Level 3 . | . . . . Level 4 . | . . . . Level 5 . | . . . . High Security . | . . . . Max Security . | . . . . Squads Dispatched 4 | . 1 2 1 Investigation 1 | . . 1 . Extermination . | . . . . Reinforcement 3 | . 1 1 1 Assault . | . . . . Garrison . | . . . . Intercept . | . . . . Searches Triggered . | . . . . Construction Impeded . | . . . . Haulers Reinforced . | . . . . Active Scanning Responses . | . . . . Cargo Convoy Interrupts . | . . . . Stealth | -11 -10 -9 -8 --------- Run | Yrd Mat Mat Mat Distress Signals 4 | . 2 2 . Communications Jammed . | . . . . Distress Signals . | . . . . Times Spotted 58 | . 23 27 8 Peak Tracking Total 8 | . 6 7 8 Tactical Retreats 3 | . 1 . 2 Traps | -11 -10 -9 -8 ------- Run | Yrd Mat Mat Mat Traps Triggered 1 | . . 1 . Indirectly . | . . . . Trap Hack Attempts . | . . . . Triggered . | . . . . Disarmed . | . . . . Reprogrammed . | . . . . Reused . | . . . . Traps Extracted . | . . . . Installed . | . . . . Triggered . | . . . . Machines | -11 -10 -9 -8 ---------- Run | Yrd Mat Mat Mat Machines Disabled 4 | . . 2 2 Max in Single Turn 1 | . . 1 1 Machines Repaired . | . . . . Machines Dismantled . | . . . . Machines Sabotaged . | . . . . Overloaded Fab Kills . | . . . . Hacking | -11 -10 -9 -8 --------- Run | Yrd Mat Mat Mat Machines Accessed 4 | . . 3 1 Terminals 4 | . . 3 1 Fabricators . | . . . . Repair Stations . | . . . . Recycling Units . | . . . . Scanalyzers . | . . . . Garrison Access . | . . . . Total Hacks 5 | . . 4 1 Successful 4 | . . 4 . Failed 1 | . . . 1 Catastrophic . | . . . . Database Lockouts . | . . . . Manual . | . . . . Terminals 5 | . . 4 1 Fabricators . | . . . . Repair Stations . | . . . . Recycling Units . | . . . . Scanalyzers . | . . . . Garrison Access . | . . . . Terminal Hacks 4 | . . 4 . Record 1 | . . 1 . Robot Analysis 1 | . . 1 . Alert Level 1 | . . 1 . Unreport Threat 1 | . . 1 . Fabricator Hacks . | . . . . Repair Station Hacks . | . . . . Recycling Unit Hacks . | . . . . Scanalyzer . | . . . . Garrison Access Hacks . | . . . . Unauthorized Hacks . | . . . . Terminals . | . . . . Fabricators . | . . . . Repair Stations . | . . . . Recycling Units . | . . . . Scanalyzers . | . . . . Garrison Access . | . . . . Data Cores Recovered . | . . . . Used . | . . . . Hacking Detections 2 | . . 2 . Full Trace Events . | . . . . Feedback Events . | . . . . Feedback Blocked . | . . . . Robot Schematics Acquired . | . . . . Robots Built . | . . . . Authchips . | . . . . Time . | . . . . Total Robot Build Rating . | . . . . Part Schematics Acquired . | . . . . Parts Built . | . . . . Authchips . | . . . . Time . | . . . . Total Part Build Rating . | . . . . Parts Repaired . | . . . . Time . | . . . . Parts Recycled . | . . . . Recycled Matter . | . . . . Retrieved Matter . | . . . . Retrieved Components . | . . . . Parts Scanalyzed . | . . . . Part Schematics Acquired . | . . . . Parts Damaged . | . . . . Bothacking | -11 -10 -9 -8 ------------ Run | Yrd Mat Mat Mat Used RIF Installer . | . . . . Robots Hacked . | . . . . Non-combat . | . . . . Combat . | . . . . Robot Hacks Applied . | . . . . Relay Couplers Released . | . . . . Fabnet Peak Effective % . | . . . . Robots Rewired . | . . . . Allies Hacked . | . . . . Hacks Repelled . | . . . . Allies | -11 -10 -9 -8 -------- Run | Yrd Mat Mat Mat Total Allies . | . . . . Largest Group . | . . . . Highest-Rated Group . | . . . . Highest-Rated Ally . | . . . . Total Orders . | . . . . Ally Attacks . | . . . . Total Damage . | . . . . Kills . | . . . . Allies Corrupted . | . . . . Allies Melted . | . . . . Intel | -11 -10 -9 -8 ------- Run | Yrd Mat Mat Mat Robot Analysis Total 1 | . . 1 . Derelict Logs Recovered . | . . . . Drone Launches . | . . . . Drone Recoveries . | . . . . Exploration | -11 -10 -9 -8 ------------- Run | Yrd Mat Mat Mat Turns Passed 2256 | 57 1188 686 325 Spaces Moved 1937 | 42 1070 594 231 Core 52 | 14 9 . 29 Treads . | . . . . Legs . | . . . . Wheels 1017 | 28 915 . 74 Hover 868 | . 146 594 128 Flight . | . . . . Fastest Speed 50 | 50 56 56 50 Average Speed 90 | 103 92 78 110 Slowest Speed 250 | 200 250 120 200 Overloaded Moves . | . . . . Propulsion Burnouts . | . . . . Robots Hopped . | . . . . Cave-ins Triggered . | . . . . Exploration Rate (%) 41 | 3 93 40 30 Regions Visited 3 Branch Regions . Pre-discovered Areas . | . . . . Known Exits Taken 2 | . 1 1 . Unknown Exits Taken 1 | 1 . . . Scrap Searched . | . . . . Spaces Dug . | . . . . Terrain Destroyed 159 | . . 79 80 Melee . | . . . . Projectile . | . . . . AOE 159 | . . 79 80 Terrain Rammed . | . . . . Walls Destroyed . | . . . . Machines Disabled . | . . . . Actions | -11 -10 -9 -8 --------- Run | Yrd Mat Mat Mat Total 2230 | 55 1190 701 284 Wait 84 | . 31 19 34 Move 1934 | 41 1069 593 231 Hop . | . . . . Pick Up 34 | 8 17 6 3 Fast Attach 6 | . 2 1 3 Attach 24 | 6 9 9 . Detach 2 | . 1 1 . Swap 9 | . 5 3 1 Drop 19 | . 9 8 2 Fire 118 | . 47 61 10 Melee . | . . . . Ram . | . . . . Kick . | . . . . Crush . | . . . . Escape Stasis . | . . . . Rewire . | . . . . Trap . | . . . . Miscellaneous . | . . . . Route ------- -11/Scrapyard -10/Materials (discovered 5 exits: *Mat x2 / *Min x2 / *Sub) -9/Materials (discovered 2 exits: *Mat / *Min) -8/Materials History --------- Turn | Location | Event 23 | -11/Scrapyard | Discovered new exit (range 16) 58 | -11/Scrapyard | Entered Materials 283 | -10/Materials | Lost 3 parts (2n1u) 313 | -10/Materials | Build established: Mutant 343 | -10/Materials | Discovered new exit (range 15) 448 | -10/Materials | Discovered new exit (range 13) 619 | -10/Materials | Discovered new exit (range 15) 764 | -10/Materials | Discovered new exit (range 13) 1034 | -10/Materials | Identified exit to Mines 1069 | -10/Materials | Identified exit to Materials 1202 | -10/Materials | Discovered new exit (range 9) 1206 | -10/Materials | Identified exit to Subcaves 1246 | -10/Materials | Entered another Materials area 1246 | -9/Materials | Evolved 2 slots: Utility x2 1760 | -9/Materials | Discovered new exit (range 12) 1771 | -9/Materials | Identified exit to Mines 1872 | -9/Materials | Discovered new exit (range 10) 1883 | -9/Materials | Identified exit to Materials 1932 | -9/Materials | Entered another Materials area 1932 | -8/Materials | Evolved 2 slots: Propulsion x1, Utility x1 2234 | -8/Materials | Core integrity fell below 50% 2248 | -8/Materials | Core integrity fell below 20% 2257 | -8/Materials | Lost 5 parts (1p1n1u2w) 2257 | -8/Materials | Destroyed by G-47 Trooper with Particle Gun Last Messages --------------- U-05 Engineer lays Concrete. Connecting with Terminal... U-05 Engineer builds a Wall. U-05 Engineer lays Concrete. Minigun destroyed. Acquired 69 matter. Y-45 Defender destroyed. The unstable cave ceiling collapses. Seismic Detector destroyed. Critical hit (Burn: +37). Mni. Grenade Launcher destroyed. Acquired 5 matter. Arm. Wheel destroyed. K-01 Serf collects debris. Critical hit (Burn: +37). K-01 Serf collects debris. Y-45 Defender suffers critical hit (Burn). K-01 Serf cleans the Atomic Centrifuge. Y-45 Defender destroyed. K-01 Serf collects debris. Map ----- +----------------------------------------------------+ | ????????????????????????????????????????????????? | | ????????????????????????????????????????????????? | | ????????????????????????????????????????????????? | | ????????????????????????????????????????????????? | | ?????????????????????????????????????? ???????? | | ?????????????????????????????????????? ???????? | | ?????????????????????????????????????? #??????? | | ????????????????????????????????????## ##?????? | | ????????????????????????????????????# #?????? | | ????????????????????????????????????? #?????? | | ?????????????????????????????????????! ??????? | | ????????????????????????????????????? ??????? | | ????????????????????????????????????? ??????? | | ?????????????????????????????????????# #??????? | | ?????????????????????????????????????# #??????? | | ?????????????????????????????????????# #??????? | | ?????????????????????????????????????" #??????? | | ?????????????????????????????????????# #??????? | | ?????????????????????????????????????# #??????? | | ?????????????????????????????????????# #???#### | | ???????????????????????###############H #??? # | | ???????????????????????# """ # #??? | | ???????????????????????# "T" """ """ # #??? | | ???????????????????????# """ """ + #??? | | ???????????????????????# """ """k# #### %= | | ???????????????????????# @=[ g #% # | | ???????????????????????# !%! Y # # / # | | ???????????????????????##!############ # / | | ????????????????????????############?# # ! # | | ???????????????????????????# [ ?# # # | | ??????????????????#+#??????# # # # | | ?????????????????# #?????# # # # | | ?????????????????# #????????"""""" + + # | | ????????????????? #????????"""""" # # # | | ?????????????????# +????????"""""" ## ## # | | ?????????????????# #?????????"""""??# ## # | | ?????????????????# #?????????"""""??# ##! # | | ???????????????### ###???????####???# ## # | | ??????########## #??????????????# ####"#### | | ??????? ######????????? ??# #??? | | ????????? ?????????? ??# #??? | | ??????????? T ??????????? T ??# #??? | | ????????????? ????????????? ??# #??? | | ??????????????? ] #?????????????? ??# #??? | | ????????????????? ???????????????##+##?# #??? | | ???????????????####+#####? ????????????????# #??? | | ???????????????# #? #??????? ???????# #??? | | ???????????????# """ ""#? #??????? ???????# #??? | | ???????????????# """ T"## #??????# ???????# #??? | | ???????????????# """ ""## ######## #??????# #??? | +----------------------------------------------------+ Best States ------------- Heat Dissipation 31 Energy Generation 14 Energy Capacity 250 Matter Stores 300 Matter Capacity 300 Sight Range 18 Terrain Scan Density 10 Armor Coverage 150 Weapon Shielding 33 Evasion (%) 53 Item Schematics ----------------- None Robot Schematics ------------------ None Fabricated ------------ Nothing Alien Tech Used ----------------- None Achievements -------------- None Challenges ------------ None Game ------ Seed LargeSkeletonTendrils Manual? 0 Play Time 00:48:21 Cumulative 15.8 hours Start 2024.04.17 @ 20:21:11 End 2024.04.18 @ 16:47:56 Sessions 2 Manual Loads 0 Difficulty Rogue Special Mode None Game No. 24 Rogue 24 Adventurer 0 Explorer 0 Win Type - Total 0 Types 0/0/0/0/0/0/0/0/0 Lore% 8 Gallery% 18 Achievement% 14 Wizard Run 0 Options --------- Layout 1 ASCII 0 Keyboard 0 Movement Mouse Keybinds 0 Fullscreen 1 Font 48/Smallcaps Map View 50x35 Zoom Use 0% Tactical HUD 0 Map Filters NONE Filters NONE Steam 1 RUN: 77ffea20-e0c6-460f-950a-6593330793b2